[Event "Titled Tuesday Blitz February 07 Early 2023"]
[White "Cramling Bellon, Anna"]
[Black "Tan, Jun Ying"]
[WhiteFideId "32009232"]
[BlackFideId "5710413"]
[WhiteElo "2043"]
[BlackElo "2307"]
[Result "0-1"]
[Round "01"]
[TimeControl "180+2"]
[Date "2023.02.07"]
[WhiteClock "0:00:01"]
[BlackClock "0:00:09"]

1. d4 {[%clk 0:03:00]}  Nf6 {[%clk 0:02:59]} 2. c4 {[%clk 0:03:00]}  e6 {[%clk 0:02:58]} 3. Nc3 {[%clk 0:02:59]}  c5 {[%clk 0:02:58]} 4. d5 {[%clk 0:02:59]}  exd5 {[%clk 0:02:59]} 5. cxd5 {[%clk 0:03:00]}  d6 {[%clk 0:03:00]} 6. e4 {[%clk 0:03:00]}  g6 {[%clk 0:03:00]} 7. f4 {[%clk 0:03:00]}  Bg7 {[%clk 0:03:00]} 8. Bb5+ {[%clk 0:03:01]}  Nfd7 {[%clk 0:03:01]} 9. Be2 {[%clk 0:03:01]}  O-O {[%clk 0:02:59]} 10. Nf3 {[%clk 0:03:00]}  c4 {[%clk 0:02:49]} 11. Bxc4 {[%clk 0:02:46]}  Nc5 {[%clk 0:02:44]} 12. O-O {[%clk 0:02:39]}  Qb6 {[%clk 0:02:33]} 13. Kh1 {[%clk 0:02:36]}  Nbd7 {[%clk 0:02:18]} 14. Be3 {[%clk 0:02:26]}  Qxb2 {[%clk 0:02:11]} 15. Nb5 {[%clk 0:02:04]}  Qxa1 {[%clk 0:02:03]} 16. Qxa1 {[%clk 0:01:58]}  Bxa1 {[%clk 0:02:04]} 17. Rxa1 {[%clk 0:01:55]}  Nb6 {[%clk 0:01:50]} 18. Nxd6 {[%clk 0:01:09]}  Nxe4 {[%clk 0:01:50]} 19. Nxe4 {[%clk 0:00:57]}  Nxc4 {[%clk 0:01:50]} 20. Nf6+ {[%clk 0:00:54]}  Kg7 {[%clk 0:01:35]} 21. Bd4 {[%clk 0:00:54]}  Rd8 {[%clk 0:00:54]} 22. Ng5 {[%clk 0:00:11]}  h6 {[%clk 0:00:38]} 23. Nh5+ {[%clk 0:00:02]}  Kf8 {[%clk 0:00:35]} 24. Nh7+ {[%clk 0:00:02]}  Ke8 {[%clk 0:00:33]} 25. Re1+ {[%clk 0:00:01]}  Kd7 {[%clk 0:00:20]} 26. N5f6+ {[%clk 0:00:02]}  Kc7 {[%clk 0:00:20]} 27. Be5+ {[%clk 0:00:01]}  Nxe5 {[%clk 0:00:20]} 28. fxe5 {[%clk 0:00:02]}  Bf5 {[%clk 0:00:19]} 29. d6+ {[%clk 0:00:02]}  Kb6 {[%clk 0:00:19]} 30. Rc1 {[%clk 0:00:03]}  Rac8 {[%clk 0:00:19]} 31. Nd5+ {[%clk 0:00:03]}  Ka5 {[%clk 0:00:18]} 32. Re1 {[%clk 0:00:03]}  Rc2 {[%clk 0:00:16]} 33. h3 {[%clk 0:00:03]}  Rxa2 {[%clk 0:00:14]} 34. Ne7 {[%clk 0:00:03]}  Be6 {[%clk 0:00:14]} 35. Nf6 {[%clk 0:00:03]}  b5 {[%clk 0:00:10]} 36. Rb1 {[%clk 0:00:03]}  a6 {[%clk 0:00:09]} 37. Nc6+ {[%clk 0:00:03]}  Kb6 {[%clk 0:00:10]} 38. Nxd8 {[%clk 0:00:04]}  Bc4 {[%clk 0:00:10]} 39. Rd1 {[%clk 0:00:03]}  b4 {[%clk 0:00:09]} 40. Nd7+ {[%clk 0:00:02]}  Kb5 {[%clk 0:00:09]} 41. Rb1 {[%clk 0:00:01]}  Bd5 {[%clk 0:00:09]} 42. Rd1 {[%clk 0:00:01]}  Bxg2+ {[%clk 0:00:09]} 43. Kg1 {[%clk 0:00:01]}  Bf3 {[%clk 0:00:09]} 0-1


[Site "https://www.chess.com"]

[Event "Titled Tuesday Blitz February 07 Early 2023"]
[White "Moksh Amit Doshi"]
[Black "Delorme, Alban"]
[WhiteFideId "25064967"]
[BlackFideId "623636"]
[WhiteElo "2401"]
[BlackElo "2298"]
[Result "1-0"]
[Round "01"]
[TimeControl "180+2"]
[Date "2023.02.07"]
[WhiteClock "0:00:17"]
[BlackClock "0:00:03"]

1. c4 {[%clk 0:02:53]}  g6 {[%clk 0:02:56]} 2. Nc3 {[%clk 0:02:31]}  Bg7 {[%clk 0:02:56]} 3. d4 {[%clk 0:02:25]}  Nf6 {[%clk 0:02:56]} 4. e4 {[%clk 0:02:24]}  d6 {[%clk 0:02:56]} 5. h3 {[%clk 0:02:19]}  O-O {[%clk 0:02:55]} 6. Be3 {[%clk 0:02:19]}  c5 {[%clk 0:02:54]} 7. Nf3 {[%clk 0:02:19]}  Nc6 {[%clk 0:02:51]} 8. d5 {[%clk 0:02:08]}  Na5 {[%clk 0:02:43]} 9. a3 {[%clk 0:02:06]}  b6 {[%clk 0:02:30]} 10. b4 {[%clk 0:01:47]}  Nb7 {[%clk 0:02:30]} 11. Rc1 {[%clk 0:01:40]}  e6 {[%clk 0:02:17]} 12. Be2 {[%clk 0:01:38]}  exd5 {[%clk 0:02:17]} 13. exd5 {[%clk 0:01:37]}  Re8 {[%clk 0:02:15]} 14. O-O {[%clk 0:01:36]}  Bf5 {[%clk 0:02:04]} 15. Re1 {[%clk 0:01:34]}  Ne4 {[%clk 0:01:54]} 16. Nxe4 {[%clk 0:01:34]}  Bxe4 {[%clk 0:01:55]} 17. Bd3 {[%clk 0:01:32]}  Bxf3 {[%clk 0:01:37]} 18. Qxf3 {[%clk 0:01:28]}  Bb2 {[%clk 0:01:37]} 19. Rb1 {[%clk 0:01:22]}  Bxa3 {[%clk 0:01:35]} 20. Bh6 {[%clk 0:00:50]}  Rxe1+ {[%clk 0:01:21]} 21. Rxe1 {[%clk 0:00:51]}  Bxb4 {[%clk 0:01:20]} 22. Re2 {[%clk 0:00:47]}  Bc3 {[%clk 0:01:18]} 23. Bxg6 {[%clk 0:00:46]}  Qf6 {[%clk 0:01:09]} 24. Bxf7+ {[%clk 0:00:35]}  Kxf7 {[%clk 0:01:05]} 25. Qh5+ {[%clk 0:00:35]}  Qg6 {[%clk 0:00:55]} 26. Qf3+ {[%clk 0:00:35]}  Qf6 {[%clk 0:00:45]} 27. Qg4 {[%clk 0:00:33]}  Re8 {[%clk 0:00:34]} 28. Bg5 {[%clk 0:00:26]}  Rxe2 {[%clk 0:00:10]} 29. Bxf6 {[%clk 0:00:24]}  Re1+ {[%clk 0:00:10]} 30. Kh2 {[%clk 0:00:24]}  Bxf6 {[%clk 0:00:07]} 31. Qh5+ {[%clk 0:00:19]}  Kg7 {[%clk 0:00:07]} 32. Qg4+ {[%clk 0:00:19]}  Kf7 {[%clk 0:00:07]} 33. Qc8 {[%clk 0:00:19]}  Re7 {[%clk 0:00:07]} 34. g4 {[%clk 0:00:18]}  Na5 {[%clk 0:00:07]} 35. Qf5 {[%clk 0:00:17]}  h6 {[%clk 0:00:03]} 36. f4 {[%clk 0:00:17]} 1-0


[Site "https://www.chess.com"]

[Event "Titled Tuesday Blitz February 07 Early 2023"]
[White "Fabris, Alberto"]
[Black "Golubev, Mikhail"]
[WhiteFideId "801348"]
[BlackFideId "14100983"]
[WhiteElo "2230"]
[BlackElo "2461"]
[Result "0-1"]
[Round "01"]
[TimeControl "180+2"]
[Date "2023.02.07"]
[WhiteClock "0:00:46"]
[BlackClock "0:00:09"]

1. e4 {[%clk 0:02:58]}  c5 {[%clk 0:02:59]} 2. Nf3 {[%clk 0:02:58]}  d6 {[%clk 0:02:59]} 3. Bb5+ {[%clk 0:02:57]}  Bd7 {[%clk 0:02:58]} 4. Bxd7+ {[%clk 0:02:55]}  Nxd7 {[%clk 0:02:57]} 5. d4 {[%clk 0:02:55]}  cxd4 {[%clk 0:02:56]} 6. Qxd4 {[%clk 0:02:55]}  Ngf6 {[%clk 0:02:54]} 7. O-O {[%clk 0:02:52]}  g6 {[%clk 0:02:49]} 8. c4 {[%clk 0:02:50]}  Bg7 {[%clk 0:02:48]} 9. Nc3 {[%clk 0:02:49]}  O-O {[%clk 0:02:48]} 10. Qd1 {[%clk 0:02:42]}  Rc8 {[%clk 0:02:43]} 11. Qe2 {[%clk 0:02:41]}  a6 {[%clk 0:02:35]} 12. Be3 {[%clk 0:02:37]}  Ng4 {[%clk 0:02:25]} 13. Bd4 {[%clk 0:02:35]}  Bxd4 {[%clk 0:02:23]} 14. Nxd4 {[%clk 0:02:35]}  Nge5 {[%clk 0:02:23]} 15. b3 {[%clk 0:02:32]}  b5 {[%clk 0:02:22]} 16. f4 {[%clk 0:02:29]}  Qb6 {[%clk 0:02:13]} 17. Rad1 {[%clk 0:02:25]}  Nc6 {[%clk 0:02:02]} 18. Qf2 {[%clk 0:02:23]}  Nxd4 {[%clk 0:01:56]} 19. Qxd4 {[%clk 0:02:22]}  Qxd4+ {[%clk 0:01:54]} 20. Rxd4 {[%clk 0:02:23]}  bxc4 {[%clk 0:01:54]} 21. Rxc4 {[%clk 0:02:18]}  Rxc4 {[%clk 0:01:49]} 22. bxc4 {[%clk 0:02:19]}  Rc8 {[%clk 0:01:46]} 23. Nd5 {[%clk 0:02:19]}  Rxc4 {[%clk 0:01:43]} 24. Nxe7+ {[%clk 0:02:16]}  Kf8 {[%clk 0:01:43]} 25. Nd5 {[%clk 0:02:11]}  Rxe4 {[%clk 0:01:42]} 26. Rb1 {[%clk 0:02:09]}  Rd4 {[%clk 0:01:35]} 27. Nc7 {[%clk 0:02:06]}  Nc5 {[%clk 0:01:28]} 28. g3 {[%clk 0:02:02]}  Rd2 {[%clk 0:01:24]} 29. Rb6 {[%clk 0:01:53]}  a5 {[%clk 0:01:11]} 30. a3 {[%clk 0:01:49]}  Ke7 {[%clk 0:01:08]} 31. Nb5 {[%clk 0:01:47]}  h5 {[%clk 0:00:57]} 32. h3 {[%clk 0:01:43]}  Ne4 {[%clk 0:00:51]} 33. g4 {[%clk 0:01:40]}  Nf2 {[%clk 0:00:37]} 34. gxh5 {[%clk 0:01:34]}  Nxh3+ {[%clk 0:00:35]} 35. Kf1 {[%clk 0:01:33]}  gxh5 {[%clk 0:00:36]} 36. Ra6 {[%clk 0:01:28]}  Nxf4 {[%clk 0:00:33]} 37. Rxa5 {[%clk 0:01:27]}  h4 {[%clk 0:00:32]} 38. Ra7+ {[%clk 0:01:15]}  Kf6 {[%clk 0:00:31]} 39. Nc3 {[%clk 0:01:12]}  d5 {[%clk 0:00:26]} 40. Ra6+ {[%clk 0:01:10]}  Kg5 {[%clk 0:00:24]} 41. Ra8 {[%clk 0:01:06]}  h3 {[%clk 0:00:20]} 42. Rh8 {[%clk 0:01:02]}  h2 {[%clk 0:00:16]} 43. Ke1 {[%clk 0:01:01]}  Rc2 {[%clk 0:00:14]} 44. Nd1 {[%clk 0:01:00]}  Nh5 {[%clk 0:00:10]} 45. Nf2 {[%clk 0:00:53]}  Rxf2 {[%clk 0:00:09]} 46. Kxf2 {[%clk 0:00:54]}  h1=Q {[%clk 0:00:10]} 47. Rg8+ {[%clk 0:00:52]}  Kf4 {[%clk 0:00:10]} 48. Rg2 {[%clk 0:00:52]}  Qh4+ {[%clk 0:00:09]} 49. Ke2 {[%clk 0:00:51]}  Ng3+ {[%clk 0:00:10]} 50. Kf2 {[%clk 0:00:50]}  Ne4+ {[%clk 0:00:10]} 51. Ke2 {[%clk 0:00:50]}  Qf6 {[%clk 0:00:10]} 52. Rg1 {[%clk 0:00:46]}  Qb2+ {[%clk 0:00:09]} 53. Kd3 {[%clk 0:00:46]}  Qd2# {[%clk 0:00:09]} 0-1


[Site "https://www.chess.com"]

[Event "Titled Tuesday Blitz February 07 Early 2023"]
[White "Leenhouts, Koen"]
[Black "Mohammadian, Mohammad"]
[WhiteFideId "1008439"]
[BlackFideId "12566055"]
[WhiteElo "2447"]
[BlackElo "1398"]
[Result "1-0"]
[Round "01"]
[TimeControl "180+2"]
[Date "2023.02.07"]
[WhiteClock "0:00:31"]
[BlackClock "0:00:02"]

1. e4 {[%clk 0:02:55]}  e5 {[%clk 0:02:58]} 2. Nf3 {[%clk 0:02:54]}  Nc6 {[%clk 0:02:57]} 3. Bb5 {[%clk 0:02:54]}  a6 {[%clk 0:02:56]} 4. Ba4 {[%clk 0:02:55]}  Nf6 {[%clk 0:02:54]} 5. O-O {[%clk 0:02:55]}  Be7 {[%clk 0:02:54]} 6. Re1 {[%clk 0:02:55]}  b5 {[%clk 0:02:53]} 7. Bb3 {[%clk 0:02:55]}  d6 {[%clk 0:02:53]} 8. c3 {[%clk 0:02:55]}  Na5 {[%clk 0:02:52]} 9. Bc2 {[%clk 0:02:42]}  c5 {[%clk 0:02:52]} 10. d4 {[%clk 0:02:39]}  Qc7 {[%clk 0:02:51]} 11. a4 {[%clk 0:02:27]}  Bg4 {[%clk 0:02:37]} 12. axb5 {[%clk 0:02:26]}  O-O {[%clk 0:02:08]} 13. bxa6 {[%clk 0:02:18]}  Ra7 {[%clk 0:01:53]} 14. d5 {[%clk 0:01:49]}  Rfa8 {[%clk 0:01:50]} 15. b4 {[%clk 0:01:44]}  Nc4 {[%clk 0:01:13]} 16. b5 {[%clk 0:01:40]}  Nb6 {[%clk 0:01:12]} 17. Nbd2 {[%clk 0:01:29]}  h6 {[%clk 0:01:10]} 18. c4 {[%clk 0:01:15]}  Qd7 {[%clk 0:01:05]} 19. Bd3 {[%clk 0:01:11]}  Nh5 {[%clk 0:00:58]} 20. h3 {[%clk 0:01:08]}  Bxh3 {[%clk 0:00:53]} 21. gxh3 {[%clk 0:01:04]}  Qxh3 {[%clk 0:00:53]} 22. Bf1 {[%clk 0:00:58]}  Qg4+ {[%clk 0:00:50]} 23. Kh1 {[%clk 0:00:57]}  Nf4 {[%clk 0:00:42]} 24. Nh2 {[%clk 0:00:51]}  Qh4 {[%clk 0:00:35]} 25. Nf3 {[%clk 0:00:45]}  Qxf2 {[%clk 0:00:32]} 26. Bxf4 {[%clk 0:00:45]}  exf4 {[%clk 0:00:26]} 27. Re2 {[%clk 0:00:45]}  Qg3 {[%clk 0:00:26]} 28. Rg2 {[%clk 0:00:45]}  Qh3 {[%clk 0:00:18]} 29. Rxg7+ {[%clk 0:00:43]}  Kxg7 {[%clk 0:00:17]} 30. Bxh3 {[%clk 0:00:44]}  Kh7 {[%clk 0:00:15]} 31. e5 {[%clk 0:00:41]}  Rg8 {[%clk 0:00:13]} 32. Qc2+ {[%clk 0:00:39]}  Rg6 {[%clk 0:00:10]} 33. Bf5 {[%clk 0:00:36]}  Ra8 {[%clk 0:00:10]} 34. Bxg6+ {[%clk 0:00:35]}  fxg6 {[%clk 0:00:09]} 35. exd6 {[%clk 0:00:33]}  Bxd6 {[%clk 0:00:08]} 36. Re1 {[%clk 0:00:33]}  Rg8 {[%clk 0:00:07]} 37. Re6 {[%clk 0:00:34]}  Rd8 {[%clk 0:00:02]} 38. Qxg6+ {[%clk 0:00:31]} 1-0


[Site "https://www.chess.com"]

[Event "Titled Tuesday Blitz February 07 Early 2023"]
[White "Daneshvar, Bardiya"]
[Black "Sanchez, Sebastian Felipe"]
[WhiteFideId "12576468"]
[BlackFideId "4403304"]
[WhiteElo "2540"]
[BlackElo "2427"]
[Result "1-0"]
[Round "02"]
[TimeControl "180+2"]
[Date "2023.02.07"]
[WhiteClock "0:00:37"]
[BlackClock "0:00:02"]

1. d4 {[%clk 0:02:09]}  Nf6 {[%clk 0:02:59]} 2. Nf3 {[%clk 0:02:09]}  d5 {[%clk 0:02:59]} 3. b3 {[%clk 0:02:10]}  Bf5 {[%clk 0:02:54]} 4. Bb2 {[%clk 0:02:10]}  e6 {[%clk 0:02:54]} 5. e3 {[%clk 0:02:10]}  Nbd7 {[%clk 0:02:52]} 6. Be2 {[%clk 0:02:09]}  Bd6 {[%clk 0:02:51]} 7. Nh4 {[%clk 0:02:09]}  Be4 {[%clk 0:02:43]} 8. Nd2 {[%clk 0:02:07]}  h6 {[%clk 0:02:42]} 9. Nxe4 {[%clk 0:02:06]}  dxe4 {[%clk 0:02:42]} 10. g3 {[%clk 0:02:07]}  g5 {[%clk 0:02:41]} 11. Ng2 {[%clk 0:02:07]}  Qe7 {[%clk 0:02:39]} 12. a3 {[%clk 0:02:05]}  O-O-O {[%clk 0:02:38]} 13. b4 {[%clk 0:02:06]}  e5 {[%clk 0:02:27]} 14. d5 {[%clk 0:02:03]}  a5 {[%clk 0:01:44]} 15. bxa5 {[%clk 0:02:00]}  Nc5 {[%clk 0:01:43]} 16. c4 {[%clk 0:01:55]}  h5 {[%clk 0:01:36]} 17. h4 {[%clk 0:01:50]}  g4 {[%clk 0:01:36]} 18. Bc3 {[%clk 0:01:49]}  Nfd7 {[%clk 0:01:35]} 19. Rb1 {[%clk 0:01:43]}  f5 {[%clk 0:01:33]} 20. Qd2 {[%clk 0:01:40]}  Nb8 {[%clk 0:01:19]} 21. O-O {[%clk 0:01:37]}  Nba6 {[%clk 0:01:20]} 22. Bd1 {[%clk 0:01:35]}  Rhf8 {[%clk 0:01:19]} 23. Bc2 {[%clk 0:01:32]}  Rf7 {[%clk 0:00:36]} 24. Rfe1 {[%clk 0:01:22]}  Rdf8 {[%clk 0:00:37]} 25. Bb4 {[%clk 0:01:18]}  Qd7 {[%clk 0:00:31]} 26. Qc3 {[%clk 0:01:12]}  Kd8 {[%clk 0:00:27]} 27. Kf1 {[%clk 0:01:11]}  Ke7 {[%clk 0:00:27]} 28. Ke2 {[%clk 0:01:11]}  Ra8 {[%clk 0:00:19]} 29. Kd1 {[%clk 0:01:11]}  Kf8 {[%clk 0:00:19]} 30. Kc1 {[%clk 0:01:11]}  Kg8 {[%clk 0:00:19]} 31. Kb2 {[%clk 0:01:11]}  Na4+ {[%clk 0:00:17]} 32. Bxa4 {[%clk 0:01:11]}  Qxa4 {[%clk 0:00:18]} 33. Qb3 {[%clk 0:01:08]}  Qd7 {[%clk 0:00:04]} 34. Kc2 {[%clk 0:00:57]}  Qe7 {[%clk 0:00:04]} 35. Red1 {[%clk 0:00:53]}  Ra7 {[%clk 0:00:04]} 36. Qa4 {[%clk 0:00:52]}  Nc5 {[%clk 0:00:04]} 37. Bxc5 {[%clk 0:00:51]}  Bxc5 {[%clk 0:00:04]} 38. Rb5 {[%clk 0:00:49]}  Qd6 {[%clk 0:00:04]} 39. Qb3 {[%clk 0:00:49]}  b6 {[%clk 0:00:05]} 40. a4 {[%clk 0:00:47]}  Rxa5 {[%clk 0:00:04]} 41. Rxa5 {[%clk 0:00:48]}  bxa5 {[%clk 0:00:05]} 42. Qb5 {[%clk 0:00:47]}  Bb4 {[%clk 0:00:05]} 43. Kb3 {[%clk 0:00:44]}  Kf8 {[%clk 0:00:06]} 44. Ne1 {[%clk 0:00:43]}  Qc5 {[%clk 0:00:06]} 45. Nc2 {[%clk 0:00:43]}  Qxb5 {[%clk 0:00:06]} 46. cxb5 {[%clk 0:00:42]}  Bd6 {[%clk 0:00:06]} 47. Kc4 {[%clk 0:00:41]}  Rd7 {[%clk 0:00:06]} 48. Na1 {[%clk 0:00:41]}  Rd8 {[%clk 0:00:05]} 49. Nb3 {[%clk 0:00:41]}  Ra8 {[%clk 0:00:05]} 50. Nc5 {[%clk 0:00:41]}  Ke7 {[%clk 0:00:05]} 51. Ne6 {[%clk 0:00:41]}  Rg8 {[%clk 0:00:04]} 52. Kb3 {[%clk 0:00:41]}  Rb8 {[%clk 0:00:04]} 53. Rc1 {[%clk 0:00:37]}  Kd7 {[%clk 0:00:04]} 54. Ng7 {[%clk 0:00:36]}  Rf8 {[%clk 0:00:02]} 55. Ne6 {[%clk 0:00:37]}  Rf7 {[%clk 0:00:01]} 56. Rc6 {[%clk 0:00:36]}  f4 {[%clk 0:00:01]} 57. exf4 {[%clk 0:00:34]}  exf4 {[%clk 0:00:02]} 58. gxf4 {[%clk 0:00:35]}  Bxf4 {[%clk 0:00:02]} 59. Nc5+ {[%clk 0:00:35]}  Kd8 {[%clk 0:00:02]} 60. Nb7+ {[%clk 0:00:33]}  Kd7 {[%clk 0:00:02]} 61. Nc5+ {[%clk 0:00:33]}  Kd8 {[%clk 0:00:02]} 62. Nxe4 {[%clk 0:00:34]}  Be5 {[%clk 0:00:01]} 63. Re6 {[%clk 0:00:34]}  Rf3+ {[%clk 0:00:01]} 64. Kc4 {[%clk 0:00:35]}  Bd6 {[%clk 0:00:01]} 65. Nxd6 {[%clk 0:00:35]}  cxd6 {[%clk 0:00:02]} 66. Rxd6+ {[%clk 0:00:36]}  Kc7 {[%clk 0:00:02]} 67. Rh6 {[%clk 0:00:36]}  Rxf2 {[%clk 0:00:02]} 68. Rxh5 {[%clk 0:00:37]}  g3 {[%clk 0:00:02]} 69. Rg5 {[%clk 0:00:37]}  g2 {[%clk 0:00:02]} 70. h5 {[%clk 0:00:38]}  Rc2+ {[%clk 0:00:02]} 71. Kd3 {[%clk 0:00:37]} 1-0


[Site "https://www.chess.com"]

[Event "Titled Tuesday Blitz February 07 Early 2023"]
[White "Suder, Jakub"]
[Black "Terry, Renato"]
[WhiteFideId "1195310"]
[BlackFideId "3803457"]
[WhiteElo "2244"]
[BlackElo "2520"]
[Result "0-1"]
[Round "02"]
[TimeControl "180+2"]
[Date "2023.02.07"]
[WhiteClock "0:00:07"]
[BlackClock "0:00:45"]

1. d4 {[%clk 0:03:00]}  e6 {[%clk 0:02:59]} 2. c4 {[%clk 0:03:00]}  Bb4+ {[%clk 0:02:59]} 3. Bd2 {[%clk 0:03:00]}  c5 {[%clk 0:02:58]} 4. dxc5 {[%clk 0:02:56]}  Bxc5 {[%clk 0:02:57]} 5. Bc3 {[%clk 0:02:55]}  Nf6 {[%clk 0:02:56]} 6. e3 {[%clk 0:02:53]}  O-O {[%clk 0:02:54]} 7. Nd2 {[%clk 0:02:53]}  d5 {[%clk 0:02:53]} 8. Nb3 {[%clk 0:02:52]}  Be7 {[%clk 0:02:52]} 9. Nf3 {[%clk 0:02:50]}  b6 {[%clk 0:02:50]} 10. Be2 {[%clk 0:02:34]}  Bb7 {[%clk 0:02:49]} 11. O-O {[%clk 0:02:33]}  Ne4 {[%clk 0:02:48]} 12. Be1 {[%clk 0:02:27]}  Nd7 {[%clk 0:02:45]} 13. Rc1 {[%clk 0:02:22]}  Bf6 {[%clk 0:02:39]} 14. Nfd4 {[%clk 0:02:21]}  Rc8 {[%clk 0:02:37]} 15. Bb4 {[%clk 0:02:20]}  Re8 {[%clk 0:02:35]} 16. cxd5 {[%clk 0:02:15]}  Bxd5 {[%clk 0:02:34]} 17. Ba6 {[%clk 0:02:04]}  Rxc1 {[%clk 0:02:14]} 18. Qxc1 {[%clk 0:01:31]}  Qb8 {[%clk 0:02:04]} 19. Bb5 {[%clk 0:01:11]}  Rc8 {[%clk 0:01:46]} 20. Qb1 {[%clk 0:01:07]}  Ndc5 {[%clk 0:01:40]} 21. Rc1 {[%clk 0:00:57]}  Nxb3 {[%clk 0:01:38]} 22. Nxb3 {[%clk 0:00:54]}  h5 {[%clk 0:01:23]} 23. f3 {[%clk 0:00:40]}  Nc5 {[%clk 0:01:16]} 24. Bxc5 {[%clk 0:00:35]}  bxc5 {[%clk 0:01:13]} 25. Bc4 {[%clk 0:00:36]}  Be5 {[%clk 0:01:01]} 26. h3 {[%clk 0:00:29]}  Bb7 {[%clk 0:00:55]} 27. Qc2 {[%clk 0:00:27]}  Bf6 {[%clk 0:00:52]} 28. Rd1 {[%clk 0:00:25]}  Bh4 {[%clk 0:00:50]} 29. Rd7 {[%clk 0:00:20]}  Bc6 {[%clk 0:00:48]} 30. Rd2 {[%clk 0:00:18]}  Qg3 {[%clk 0:00:48]} 31. Qd1 {[%clk 0:00:10]}  Bf6 {[%clk 0:00:48]} 32. Kf1 {[%clk 0:00:08]}  Qh2 {[%clk 0:00:46]} 33. Qe1 {[%clk 0:00:07]}  Qh1+ {[%clk 0:00:45]} 0-1


[Site "https://www.chess.com"]

[Event "Titled Tuesday Blitz February 07 Early 2023"]
[White "Horobetz, Graham"]
[Black "Indjic, Aleksandar"]
[WhiteFideId "2047322"]
[BlackFideId "911925"]
[WhiteElo "2140"]
[BlackElo "2618"]
[Result "0-1"]
[Round "02"]
[TimeControl "180+2"]
[Date "2023.02.07"]
[WhiteClock "0:00:05"]
[BlackClock "0:00:46"]

1. e4 {[%clk 0:03:00]}  c5 {[%clk 0:02:52]} 2. Nf3 {[%clk 0:03:00]}  d6 {[%clk 0:02:49]} 3. d4 {[%clk 0:03:01]}  cxd4 {[%clk 0:02:50]} 4. Nxd4 {[%clk 0:03:02]}  Nf6 {[%clk 0:02:50]} 5. Nc3 {[%clk 0:03:02]}  a6 {[%clk 0:02:51]} 6. f3 {[%clk 0:03:00]}  e5 {[%clk 0:02:50]} 7. Nb3 {[%clk 0:02:59]}  Be7 {[%clk 0:02:50]} 8. Be3 {[%clk 0:03:00]}  Be6 {[%clk 0:02:49]} 9. Qd2 {[%clk 0:02:59]}  h5 {[%clk 0:02:50]} 10. Be2 {[%clk 0:02:59]}  Nbd7 {[%clk 0:02:50]} 11. Nd5 {[%clk 0:02:53]}  Bxd5 {[%clk 0:02:48]} 12. exd5 {[%clk 0:02:54]}  Qc7 {[%clk 0:02:47]} 13. Na5 {[%clk 0:02:41]}  O-O {[%clk 0:02:44]} 14. c4 {[%clk 0:02:42]}  Rfe8 {[%clk 0:02:35]} 15. O-O {[%clk 0:02:35]}  Bf8 {[%clk 0:02:34]} 16. b4 {[%clk 0:02:35]}  b6 {[%clk 0:02:24]} 17. Nc6 {[%clk 0:02:33]}  Nb8 {[%clk 0:02:24]} 18. Nxb8 {[%clk 0:02:23]}  Raxb8 {[%clk 0:02:22]} 19. Rfc1 {[%clk 0:02:00]}  a5 {[%clk 0:02:20]} 20. a3 {[%clk 0:02:00]}  g6 {[%clk 0:02:19]} 21. Rab1 {[%clk 0:01:49]}  Nd7 {[%clk 0:02:18]} 22. Bd1 {[%clk 0:01:38]}  axb4 {[%clk 0:02:16]} 23. axb4 {[%clk 0:01:36]}  Ra8 {[%clk 0:02:16]} 24. Ra1 {[%clk 0:01:34]}  Bg7 {[%clk 0:02:16]} 25. Ra2 {[%clk 0:01:16]}  Ra7 {[%clk 0:02:02]} 26. Rca1 {[%clk 0:01:09]}  Rxa2 {[%clk 0:01:55]} 27. Rxa2 {[%clk 0:01:05]}  Qxc4 {[%clk 0:01:51]} 28. Ba4 {[%clk 0:01:00]}  Rd8 {[%clk 0:01:47]} 29. Rc2 {[%clk 0:00:56]}  Qa6 {[%clk 0:01:45]} 30. Bc6 {[%clk 0:00:50]}  e4 {[%clk 0:01:00]} 31. Ra2 {[%clk 0:00:37]}  Qc4 {[%clk 0:00:58]} 32. Rc2 {[%clk 0:00:36]}  Qb3 {[%clk 0:00:56]} 33. fxe4 {[%clk 0:00:26]}  Ne5 {[%clk 0:00:54]} 34. Bxb6 {[%clk 0:00:23]}  Nc4 {[%clk 0:00:53]} 35. Rxc4 {[%clk 0:00:13]}  Qxc4 {[%clk 0:00:53]} 36. h4 {[%clk 0:00:07]}  Rb8 {[%clk 0:00:48]} 37. Ba5 {[%clk 0:00:06]}  Bd4+ {[%clk 0:00:47]} 38. Kh2 {[%clk 0:00:05]}  Be5+ {[%clk 0:00:47]} 39. Kh3 {[%clk 0:00:05]}  Qb3+ {[%clk 0:00:46]} 0-1


[Site "https://www.chess.com"]

[Event "Titled Tuesday Blitz February 07 Early 2023"]
[White "Zierk, Steven"]
[Black "Klose, Eli"]
[WhiteFideId "2034255"]
[BlackFideId "16242955"]
[WhiteElo "2488"]
[BlackElo "1519"]
[Result "1-0"]
[Round "02"]
[TimeControl "180+2"]
[Date "2023.02.07"]
[WhiteClock "0:00:19"]
[BlackClock "0:00:44"]

1. e4 {[%clk 0:03:00]}  e6 {[%clk 0:02:59]} 2. d4 {[%clk 0:03:00]}  d5 {[%clk 0:02:56]} 3. Nc3 {[%clk 0:03:00]}  Bb4 {[%clk 0:02:56]} 4. e5 {[%clk 0:03:00]}  Ne7 {[%clk 0:02:56]} 5. Bd2 {[%clk 0:02:53]}  b6 {[%clk 0:02:56]} 6. h4 {[%clk 0:02:25]}  Ba6 {[%clk 0:02:52]} 7. Bxa6 {[%clk 0:02:23]}  Nxa6 {[%clk 0:02:53]} 8. h5 {[%clk 0:02:24]}  h6 {[%clk 0:02:52]} 9. Qg4 {[%clk 0:02:01]}  Nf5 {[%clk 0:02:45]} 10. Nf3 {[%clk 0:02:00]}  Qe7 {[%clk 0:02:19]} 11. O-O-O {[%clk 0:01:40]}  O-O-O {[%clk 0:02:14]} 12. Qf4 {[%clk 0:01:33]}  Bxc3 {[%clk 0:01:57]} 13. Bxc3 {[%clk 0:01:32]}  Qe8 {[%clk 0:01:51]} 14. g4 {[%clk 0:01:27]}  Ne7 {[%clk 0:01:51]} 15. Qe3 {[%clk 0:01:23]}  Kb7 {[%clk 0:01:50]} 16. Nh4 {[%clk 0:01:22]}  c5 {[%clk 0:01:45]} 17. f4 {[%clk 0:01:20]}  Rc8 {[%clk 0:01:44]} 18. f5 {[%clk 0:01:12]}  Qa4 {[%clk 0:01:44]} 19. Kb1 {[%clk 0:01:12]}  cxd4 {[%clk 0:01:36]} 20. Rxd4 {[%clk 0:01:09]}  Rc4 {[%clk 0:01:35]} 21. b3 {[%clk 0:01:03]}  Qb5 {[%clk 0:01:33]} 22. a4 {[%clk 0:01:02]}  Rxc3 {[%clk 0:01:13]} 23. Qxc3 {[%clk 0:01:03]}  Qd7 {[%clk 0:01:06]} 24. fxe6 {[%clk 0:00:51]}  fxe6 {[%clk 0:01:06]} 25. Rf4 {[%clk 0:00:41]}  Nc5 {[%clk 0:01:03]} 26. Rf7 {[%clk 0:00:39]}  Ne4 {[%clk 0:01:03]} 27. Qb4 {[%clk 0:00:37]}  Re8 {[%clk 0:01:01]} 28. Ng6 {[%clk 0:00:36]}  Nc5 {[%clk 0:01:00]} 29. Rxg7 {[%clk 0:00:34]}  Ka8 {[%clk 0:00:56]} 30. Rf1 {[%clk 0:00:33]}  Qd8 {[%clk 0:00:55]} 31. Rff7 {[%clk 0:00:26]}  Nxg6 {[%clk 0:00:54]} 32. Rxa7+ {[%clk 0:00:25]}  Kb8 {[%clk 0:00:54]} 33. hxg6 {[%clk 0:00:23]}  Rf8 {[%clk 0:00:48]} 34. Raf7 {[%clk 0:00:20]}  Re8 {[%clk 0:00:44]} 35. a5 {[%clk 0:00:19]} 1-0


[Site "https://www.chess.com"]